bitfinex-derivatives/quotes_BTCF0:USTF0_20210705
["timestamp","ask_amount","ask_price","bid_price","bid_amount"]
[1625458462536,0.2432872,34154.0,34152.0,0.79870731]
[1625458462634,0.2432872,34154.0,34152.0,0.73970731]
[1625458462985,0.2432872,34154.0,34152.0,0.79870731]
[1625458463336,0.24368057,34153.0,34152.0,1.03928275]
[1625458463436,0.24368057,34153.0,34152.0,1.38130275]
[1625458463636,0.97358661,34156.0,34152.0,1.29512325]
[1625458463637,0.24371908,34154.0,34152.0,1.29512325]
[1625458463988,0.24371908,34154.0,34153.0,0.08620415]
[1625458464086,0.24371908,34154.0,34153.0,0.14520415]
[1625458464337,0.24371908,34154.0,34153.0,0.31762761]
[1625458464787,0.24371908,34154.0,34153.0,0.37662761]
[1625458465391,0.24383058,34155.0,34153.0,0.118]
[1625458465840,0.24383058,34155.0,34154.0,0.1724288]
[1625458465940,0.24383058,34155.0,34154.0,0.2904288]
[1625458466042,0.24383058,34155.0,34154.0,0.3904288]
[1625458466392,0.24383058,34155.0,34154.0,0.47663698]
[1625458466793,0.24391185,34157.0,34154.0,0.90764992]
[1625458466891,0.24391185,34157.0,34154.0,0.91207285]
[1625458467194,0.24391185,34157.0,34154.0,0.80764992]
[1625458467294,0.24391185,34157.0,34156.0,0.24057544]
[1625458467394,0.24391185,34157.0,34156.0,0.55820208]
[1625458467494,0.24391185,34157.0,34156.0,0.61720208]
[1625458467899,0.24391313,34158.0,34156.0,0.35857544]
[1625458467997,0.24391313,34158.0,34156.0,0.45857544]
[1625458468348,0.24391313,34158.0,34156.0,0.35857544]
[1625458468497,0.24391313,34158.0,34157.0,0.25860735]
[1625458468599,0.24391313,34158.0,34157.0,0.31760735]
[1625458468998,0.24391313,34158.0,34157.0,0.41760735]
[1625458469299,0.24391313,34158.0,34157.0,0.65818279]
[1625458469600,0.24370377,34159.0,34157.0,0.57198034]
[1625458470051,0.24370377,34159.0,34158.0,0.08620277]
[1625458470153,0.24370377,34159.0,34158.0,0.14520277]
[1625458470254,0.24370377,34159.0,34158.0,0.20420277]
[1625458470657,0.08128867,34159.0,34158.0,0.47659023]
[1625458470752,0.08128867,34159.0,34158.0,0.41759023]
[1625458470967,0.08128867,34159.0,34158.0,0.47659023]
[1625458471254,0.08128867,34159.0,34158.0,0.48101239]
[1625458471369,0.08128867,34159.0,34158.0,0.72158783]
[1625458471456,0.08128867,34159.0,34158.0,4.61188783]
[1625458471704,0.9072,34164.0,34158.0,7.28279038]
[1625458472005,0.9072,34164.0,34159.0,0.00442183]
[1625458472105,0.9072,34164.0,34159.0,0.36172183]
[1625458472206,0.9072,34164.0,34159.0,0.42072183]
[1625458472306,0.9072,34164.0,34163.0,0.17231944]
[1625458472405,0.9072,34164.0,34163.0,0.29031944]
[1625458472807,0.9072,34164.0,34163.0,0.39031944]
[1625458473358,0.9072,34164.0,34163.0,0.69915088]
[1625458474010,0.9072,34164.0,34163.0,1.3881779]
[1625458476066,0.9072,34164.0,34163.0,0.69915088]
[1625458476165,0.9072,34164.0,34163.0,0.64015088]
[1625458476366,0.9072,34164.0,34163.0,0.89840152]
[1625458476869,0.9072,34164.0,34163.0,0.72623443]
[1625458477573,0.9072,34164.0,34163.0,0.64015088]
[1625458477924,0.9072,34164.0,34163.0,0.72685088]
[1625458478026,0.9072,34164.0,34163.0,0.9715043]
[1625458478125,0.9072,34164.0,34163.0,1.0305043]
[1625458478427,0.9072,34164.0,34163.0,0.94443088]
[1625458479525,0.9072,34164.0,34163.0,0.88543088]
[1625458479625,0.9072,34164.0,34163.0,0.64015088]
[1625458479978,0.9072,34164.0,34163.0,0.69915088]
[1625458480580,0.9072,34164.0,34163.0,0.91114088]
[1625458481083,0.9072,34164.0,34163.0,1.59954272]
[1625458481685,0.9072,34164.0,34163.0,1.54054272]
[1625458481785,0.9072,34164.0,34163.0,1.48154272]
[1625458481886,0.9072,34164.0,34163.0,1.11027624]
[1625458481987,0.9072,34164.0,34163.0,0.89828624]
[1625458482487,0.9072,34164.0,34163.0,0.64015088]
[1625458483840,0.9072,34164.0,34163.0,0.89828726]
[1625458484691,0.9072,34164.0,34163.0,0.64015088]
[1625458485692,0.7622,34164.0,34163.0,0.64015088]
[1625458486042,0.7622,34164.0,34163.0,0.69915088]
[1625458486444,0.7622,34164.0,34163.0,0.64015088]
[1625458486693,0.7622,34164.0,34163.0,0.81219255]
[1625458486792,0.7622,34164.0,34163.0,0.8166155]
[1625458487343,0.7622,34164.0,34163.0,0.64457383]
[1625458487446,0.7622,34164.0,34163.0,1.33273936]
[1625458488095,0.7622,34164.0,34163.0,0.64457383]
[1625458488698,0.7622,34164.0,34163.0,1.33259095]
[1625458490453,0.7622,34164.0,34163.0,0.64457383]
[1625458491103,0.7622,34164.0,34163.0,0.81654146]
[1625458491203,0.7622,34164.0,34163.0,0.75754146]
[1625458491461,0.7622,34164.0,34163.0,0.81654146]
[1625458491558,0.7622,34164.0,34163.0,0.58557383]
[1625458491766,0.7622,34164.0,34163.0,0.64457383]
[1625458492158,0.7622,34164.0,34163.0,0.90252988]
[1625458492557,0.7622,34164.0,34163.0,1.18877988]
[1625458493218,0.7622,34164.0,34163.0,1.12977988]
[1625458493510,0.7622,34164.0,34163.0,0.95780918]
[1625458494161,0.7622,34164.0,34163.0,1.12975501]
[1625458494765,0.7622,34164.0,34163.0,0.95780918]
[1625458495617,0.7622,34164.0,34163.0,0.87182383]
[1625458495718,0.7622,34164.0,34163.0,0.64457383]
[1625458499684,0.7622,34164.0,34163.0,0.70357383]
[1625458499779,0.7622,34164.0,34163.0,0.64457383]
[1625458504087,0.7622,34164.0,34163.0,0.95081383]
[1625458504286,0.7622,34164.0,34163.0,0.94639088]
[1625458505489,0.7622,34164.0,34163.0,1.00539088]
[1625458505589,0.7622,34164.0,34163.0,1.0098161]
[1625458505940,0.7074,34164.0,34163.0,1.0098161]
[1625458506141,0.6332,34164.0,34163.0,1.0098161]
[1625458506693,0.20296084,34171.0,34164.0,0.059]
[1625458506793,0.05996084,34171.0,34164.0,0.118]
[1625458507091,0.6314873,34173.0,34165.0,0.439898]
[1625458507192,0.5448873,34173.0,34172.0,4.1855]
[1625458507292,0.5448873,34173.0,34172.0,4.51952]
[1625458507493,0.5448873,34173.0,34172.0,4.52394469]
[1625458507795,0.5448873,34173.0,34172.0,5.24567101]
[1625458507992,0.5348873,34173.0,34172.0,5.24567101]
[1625458508094,0.4032873,34173.0,34172.0,5.24567101]
[1625458508192,0.4032873,34173.0,34172.0,5.34567101]
[1625458508291,0.4032873,34173.0,34172.0,5.43457101]
[1625458508543,0.99154496,34183.0,34172.0,5.43457101]
[1625458508641,1.05054496,34183.0,34172.0,5.43457101]
[1625458508943,1.05054496,34183.0,34173.0,0.00442429]
[1625458509043,0.97854496,34183.0,34173.0,0.12242429]
[1625458509494,0.059,34183.0,34174.0,0.00442404]
[1625458509595,0.059,34183.0,34174.0,0.06342404]
[1625458509694,0.059,34183.0,34182.0,0.1]
[1625458509793,0.059,34183.0,34182.0,1.17692632]
[1625458509996,0.059,34183.0,34182.0,1.1813499]
[1625458510196,0.059,34183.0,34182.0,1.17692632]
[1625458510697,1.15684484,34188.0,34182.0,1.17692632]
[1625458510796,0.88943917,34188.0,34182.0,1.17692632]
[1625458510896,0.83023917,34188.0,34182.0,1.32252632]
[1625458510998,1.48732472,34193.0,34182.0,1.32252632]
[1625458511096,1.48732472,34193.0,34183.0,0.00442239]
[1625458511197,1.48732472,34193.0,34183.0,0.12242239]
[1625458511446,1.40292472,34193.0,34184.0,0.439128]
[1625458511546,1.40292472,34193.0,34184.0,0.498128]
[1625458511645,1.40292472,34193.0,34184.0,0.56155016]
[1625458511746,1.40292472,34193.0,34192.0,0.72172632]
[1625458511846,1.38862472,34193.0,34192.0,1.01489632]
[1625458511947,1.38862472,34193.0,34192.0,1.07389632]
[1625458512046,1.38862472,34193.0,34192.0,1.17389632]
[1625458512148,1.38862472,34193.0,34192.0,1.17831838]
[1625458512349,0.057,34195.0,34192.0,1.17389632]
[1625458512848,1.32587687,34198.0,34192.0,1.07389632]
[1625458513700,1.32587687,34198.0,34197.0,0.1]
[1625458513802,1.32587687,34198.0,34197.0,0.45857544]
[1625458513900,0.057,34201.0,34197.0,0.45857544]
[1625458514402,0.057,34201.0,34197.0,0.35857544]
[1625458514901,0.057,34201.0,34200.0,0.1]
[1625458515009,0.057,34201.0,34200.0,0.4327]
[1625458515205,0.057,34201.0,34200.0,0.3737]
[1625458515553,0.057,34201.0,34197.0,0.24057544]
[1625458515655,0.057,34201.0,34192.0,0.48115088]
[1625458515777,0.32864,34201.0,34192.0,0.059]
[1625458515855,0.72172632,34193.0,34189.0,0.01]
[1625458515955,0.116,34192.0,34189.0,0.069]
[1625458516056,0.116,34192.0,34189.0,0.059]
[1625458516157,0.175,34192.0,34188.0,0.24057544]
[1625458516257,0.116,34192.0,34188.0,0.29957544]
[1625458516358,0.057,34192.0,34188.0,0.29957544]
[1625458517258,0.057,34192.0,34188.0,0.24057544]
[1625458517358,0.057,34192.0,34188.0,0.29957544]
[1625458517759,0.057,34192.0,34188.0,0.059]
[1625458517860,0.24057544,34189.0,34188.0,0.059]
[1625458517958,0.29757544,34189.0,34188.0,0.059]
[1625458519260,0.29757544,34189.0,34185.0,0.24057544]
[1625458519359,0.29757544,34189.0,34185.0,0.29957544]
[1625458519810,0.24057544,34188.0,34185.0,0.29957544]
[1625458519910,0.057,34187.0,34185.0,0.24057544]
[1625458520013,0.33887,34187.0,34185.0,0.24057544]
[1625458520765,0.83322867,34187.0,34185.0,0.24057544]
[1625458521564,0.49456522,34186.0,34185.0,0.24057544]
[1625458521666,0.55156522,34186.0,34185.0,0.24057544]
[1625458521865,0.61056522,34186.0,34185.0,0.24057544]
[1625458522215,0.61056522,34186.0,34182.0,0.24057544]
[1625458522314,0.66956522,34186.0,34178.0,0.24057544]
[1625458522425,0.66956522,34186.0,34170.0,1.37273994]
[1625458522537,1.16956522,34186.0,34174.0,0.51493318]
[1625458522619,0.66956522,34186.0,34174.0,0.51493318]
[1625458523566,0.49476477,34180.0,34170.0,0.51511674]
[1625458523666,0.116,34179.0,34170.0,0.51511674]
[1625458523767,0.175,34179.0,34170.0,0.51511674]
[1625458523866,0.96230176,34171.0,34170.0,0.51511674]
[1625458523969,1.28922176,34171.0,34170.0,0.51511674]
[1625458524276,1.28922176,34171.0,34168.0,0.51527139]
[1625458524370,1.28922176,34171.0,34168.0,0.57427139]
[1625458524518,1.28922176,34171.0,34168.0,0.51527139]
[1625458524770,1.28922176,34171.0,34166.0,0.51528392]
[1625458525321,1.34822176,34171.0,34166.0,0.51528392]
[1625458525821,0.24057544,34167.0,34166.0,0.51528392]
[1625458525922,0.29757544,34167.0,34166.0,0.51528392]
[1625458526425,0.29757544,34167.0,34165.0,0.51548522]
[1625458526525,0.29757544,34167.0,34165.0,0.57448522]
[1625458527477,0.29757544,34167.0,34166.0,0.51566227]
[1625458527576,0.29757544,34167.0,34166.0,0.90979227]
[1625458531786,0.29757544,34167.0,34166.0,0.85079227]
[1625458532086,0.29757544,34167.0,34166.0,0.90979227]
[1625458534642,0.29757544,34167.0,34166.0,0.91422162]
[1625458534893,0.24057544,34167.0,34166.0,0.91422162]
[1625458535193,0.24057544,34167.0,34166.0,3.49338134]
[1625458538298,0.24057544,34167.0,34166.0,3.43438134]
[1625458538646,0.29757544,34167.0,34166.0,3.43438134]
[1625458539199,0.29757544,34167.0,34166.0,2.05882949]
[1625458539749,0.29757544,34167.0,34166.0,2.15882949]
[1625458539849,0.29757544,34167.0,34166.0,3.19077462]
[1625458541156,0.29757544,34167.0,34166.0,3.24977462]
[1625458546663,0.29757544,34167.0,34166.0,4.62637791]
[1625458547564,0.29757544,34167.0,34166.0,4.56737791]
[1625458547666,0.59640544,34167.0,34166.0,2.6114448]
[1625458548065,0.59640544,34167.0,34162.0,0.28989242]
[1625458548165,5.1086,34163.0,34157.0,1.72048946]
[1625458548267,0.057,34162.0,34160.0,1.54898651]
[1625458548366,0.116,34162.0,34160.0,1.54898651]
[1625458548568,0.116,34162.0,34161.0,0.00442095]
[1625458549170,0.175,34162.0,34148.0,0.00442119]
[1625458549270,0.175,34162.0,34148.0,0.06342119]
[1625458549369,0.175,34162.0,34148.0,0.059]
[1625458549670,0.175,34162.0,34149.0,0.00442151]
[1625458549772,0.175,34162.0,34149.0,0.06342151]
[1625458550024,0.72172632,34150.0,34149.0,0.06342151]
[1625458550122,1.00331632,34150.0,34149.0,0.06342151]
[1625458550222,1.00331632,34150.0,34149.0,0.059]
[1625458550523,1.00331632,34150.0,34149.0,0.06342162]
[1625458551925,1.00331632,34150.0,34149.0,0.00442162]
[1625458552327,1.00331632,34150.0,34145.0,0.00442178]
[1625458552427,1.00331632,34150.0,34145.0,0.06342178]
[1625458552528,1.00331632,34150.0,34145.0,0.12242178]
[1625458552830,1.00331632,34150.0,34146.0,0.0044218]
[1625458552930,1.00331632,34150.0,34146.0,0.1224218]
[1625458553283,1.00331632,34150.0,34146.0,0.0044218]
[1625458553381,1.00331632,34150.0,34147.0,0.0044218]
[1625458553580,1.00331632,34150.0,34147.0,0.0634218]
[1625458553681,1.00331632,34150.0,34147.0,0.059]
[1625458553782,1.00331632,34150.0,34147.0,0.118]
[1625458553882,1.00331632,34150.0,34148.0,0.00442182]
[1625458554084,1.00331632,34150.0,34148.0,0.12242182]
[1625458554436,1.00331632,34150.0,34149.0,0.00442175]
[1625458554536,1.00331632,34150.0,34149.0,0.06342175]
[1625458555185,0.77872632,34150.0,34149.0,0.06342175]
[1625458556639,0.83772632,34150.0,34149.0,0.06342175]
[1625458556738,0.83772632,34150.0,34149.0,0.00442175]
[1625458556940,0.83772632,34150.0,34140.0,0.24057544]
[1625458557038,1.13599632,34150.0,34144.0,0.29957544]
[1625458557291,1.13599632,34150.0,34144.0,0.059]
[1625458557502,1.13599632,34150.0,34132.0,1.9589937]
[1625458557503,1.19499632,34150.0,34145.0,0.00442347]
[1625458557701,1.69499632,34150.0,34132.0,1.9589937]
[1625458557806,1.69499632,34150.0,34132.0,2.0179937]
[1625458557897,1.69499632,34150.0,34132.0,0.29957544]
[1625458557990,4.3212,34142.0,34133.0,0.00442443]
[1625458558090,0.72172632,34134.0,34133.0,0.06342443]
[1625458558191,1.04254632,34134.0,34133.0,0.06342443]
[1625458558491,1.04254632,34134.0,34133.0,0.00442443]
[1625458558741,1.04254632,34134.0,34129.0,0.00442562]
[1625458558841,1.04254632,34134.0,34129.0,0.06342562]
[1625458559343,1.04254632,34134.0,34130.0,0.0044256]
[1625458559447,1.04254632,34134.0,34130.0,0.0634256]
[1625458559546,1.04254632,34134.0,34130.0,0.1224256]
[1625458559845,0.98554632,34134.0,34131.0,0.00442557]
[1625458559945,0.72172632,34134.0,34131.0,0.12242557]
[1625458560345,0.72172632,34134.0,34132.0,0.00442538]
[1625458560445,0.72172632,34134.0,34132.0,0.12242538]
[1625458560898,0.72172632,34134.0,34133.0,0.01500765]
[1625458561006,0.72172632,34134.0,34133.0,0.13300765]
[1625458561250,0.42215088,34134.0,34133.0,0.07400765]
[1625458561351,0.18157544,34134.0,34133.0,0.13300765]
[1625458561449,0.18157544,34134.0,34133.0,1.67612878]
[1625458561649,0.9774,34149.0,34133.0,1.67612878]
[1625458562004,0.9774,34149.0,34134.0,0.00442388]
[1625458562101,0.24057544,34147.0,34146.0,0.24057544]
[1625458562204,0.24057544,34147.0,34146.0,0.47944544]
[1625458562503,0.24057544,34147.0,34146.0,0.48386915]
[1625458562602,0.24057544,34147.0,34146.0,0.54286915]
[1625458562702,0.24057544,34150.0,34146.0,0.60186915]
[1625458563003,0.20557544,34150.0,34147.0,0.00442306]
[1625458563102,0.21357543,34153.0,34150.0,0.059]
[1625458563202,1.911,34167.0,34150.0,0.118]
[1625458563302,0.057,34166.0,34150.0,0.118]
[1625458563402,0.116,34166.0,34150.0,0.118]
[1625458563504,0.116,34166.0,34151.0,0.00442277]
[1625458563604,0.116,34166.0,34151.0,0.06342277]
[1625458563704,0.116,34166.0,34151.0,0.12242277]
[1625458563905,0.116,34166.0,34151.0,0.06342277]
[1625458564105,0.24057544,34161.0,34160.0,0.24057544]
[1625458564205,0.29757544,34161.0,34160.0,0.54315544]
[1625458565214,0.29757544,34161.0,34160.0,0.64315544]
[1625458572576,0.35657544,34161.0,34160.0,0.64315544]
[1625458572677,0.35657544,34161.0,34160.0,0.34057544]
[1625458573479,0.41557544,34161.0,34160.0,0.34057544]
[1625458574230,0.41557544,34161.0,34160.0,0.1]
[1625458574881,0.41557544,34161.0,34160.0,0.0001]
[1625458576183,1.30107383,34161.0,34160.0,0.0001]
[1625458578136,2.42963822,34161.0,34160.0,0.0001]
[1625458578588,2.26847452,34161.0,34160.0,0.0001]
[1625458581197,3.3975517,34161.0,34160.0,0.0001]
[1625458582610,3.8975517,34161.0,34160.0,0.0001]
[1625458582902,5.18653176,34161.0,34160.0,0.0001]
[1625458583003,5.18653176,34161.0,34147.0,0.00442029]
[1625458583205,4.68653176,34161.0,34147.0,0.00442029]
[1625458583304,5.18653176,34161.0,34147.0,0.00442029]
[1625458583605,5.18653176,34161.0,34145.0,0.00442038]
[1625458583706,0.64444974,34156.0,34145.0,0.00442038]
[1625458583807,0.057,34155.0,34145.0,0.00442038]
[1625458584007,0.175,34155.0,34145.0,0.00442038]
[1625458584108,0.175,34155.0,34144.0,0.00442047]
[1625458584209,0.81932566,34155.0,34144.0,0.00442047]
[1625458584308,0.72172632,34145.0,34144.0,0.00442047]
[1625458584408,0.77872632,34145.0,34144.0,0.00442047]
[1625458585761,1.22147632,34145.0,34144.0,0.00442047]
[1625458586665,1.22147632,34145.0,34141.0,0.00442078]
[1625458586964,1.22147632,34145.0,34140.0,0.00442091]
[1625458587267,1.22147632,34145.0,34142.0,0.00442091]
[1625458587466,1.22147632,34145.0,34141.0,0.00442094]
[1625458587772,1.22147632,34145.0,34140.0,0.00442105]
[1625458588019,1.22147632,34145.0,34139.0,0.00442097]
[1625458588368,0.48115088,34140.0,34139.0,0.00442097]
[1625458588467,0.59715088,34140.0,34139.0,0.00442097]
[1625458588568,0.65615088,34140.0,34138.0,0.00442127]
[1625458588870,0.65615088,34140.0,34139.0,0.00442133]
[1625458589320,0.65615088,34140.0,34137.0,0.00442135]
[1625458589619,0.65615088,34140.0,34136.0,0.00442131]
[1625458589871,0.65615088,34140.0,34135.0,0.00442133]
[1625458589973,4.9027,34137.0,34135.0,0.00442133]
[1625458590073,0.057,34136.0,34135.0,0.00442133]
[1625458590271,0.175,34136.0,34135.0,0.00442133]
[1625458590372,0.41557544,34136.0,34135.0,0.00442133]
[1625458590974,0.35657544,34136.0,34135.0,0.00442133]
[1625458591175,0.29757544,34136.0,34135.0,0.00442133]
[1625458591274,0.35657544,34136.0,34135.0,0.00442133]
[1625458591976,0.29757544,34136.0,34135.0,0.00442133]
[1625458592877,0.35657544,34136.0,34135.0,0.00442133]
[1625458593528,0.29757544,34136.0,34135.0,0.00442133]
[1625458593628,0.35657544,34136.0,34135.0,0.00442133]
[1625458593728,0.29757544,34136.0,34135.0,0.00442133]
[1625458593877,0.35657544,34136.0,34135.0,0.00442133]
[1625458594079,0.41557544,34136.0,34135.0,0.00442133]
[1625458594832,0.35657544,34136.0,34135.0,0.00442133]
[1625458595031,0.29757544,34136.0,34135.0,0.00442133]
[1625458595133,0.35657544,34136.0,34135.0,0.00442133]
[1625458595432,0.35657544,34136.0,34134.0,0.68728982]
[1625458595532,0.41557544,34136.0,34134.0,0.68728982]
[1625458595934,0.41557544,34136.0,34132.0,0.68689703]
[1625458596133,0.35657544,34136.0,34132.0,0.68689703]
[1625458596234,0.35657544,34136.0,34133.0,0.00442214]
[1625458596335,0.24057544,34134.0,34133.0,0.00442214]
[1625458596434,0.29757544,34134.0,34133.0,0.00442214]
[1625458596535,0.35657544,34134.0,34133.0,0.00442214]
[1625458596634,0.41557544,34134.0,34133.0,0.00442214]
[1625458596934,0.35657544,34134.0,34133.0,0.00442214]
[1625458598538,0.35657544,34134.0,34133.0,0.69164755]
[1625458598939,0.29757544,34134.0,34133.0,0.00442214]
[1625458599239,0.35657544,34134.0,34133.0,0.00442214]
[1625458599339,0.41557544,34134.0,34133.0,0.00442214]
[1625458599440,0.35657544,34134.0,34133.0,0.00442214]
[1625458599939,0.35657544,34134.0,34132.0,0.0044224]
[1625458600240,0.29757544,34134.0,34132.0,0.0044224]
[1625458600340,0.24057544,34134.0,34132.0,0.0044224]
[1625458600540,0.24057544,34134.0,34132.0,0.69175962]
[1625458600741,0.24057544,34134.0,34132.0,0.75075962]
[1625458600844,0.24057544,34134.0,34132.0,0.80975962]
[1625458601041,0.24057544,34134.0,34133.0,2.92527779]
[1625458601141,0.24057544,34134.0,34133.0,3.24950779]
[1625458601391,0.24057544,34134.0,34133.0,3.19050779]
[1625458601492,0.24057544,34134.0,34133.0,3.24950779]
[1625458601592,0.24057544,34134.0,34133.0,4.62407142]
[1625458602343,0.24057544,34134.0,34133.0,4.86464686]
[1625458602545,0.24057544,34134.0,34133.0,4.87524951]
[1625458603496,0.24057544,34134.0,34133.0,4.81624951]
[1625458603594,0.24057544,34134.0,34133.0,4.75724951]
[1625458603804,0.24057544,34134.0,34133.0,6.30442906]
[1625458603993,0.24057544,34134.0,34133.0,6.29382641]
[1625458604195,0.24057544,34134.0,34133.0,4.74664686]
[1625458604545,0.24057544,34134.0,34133.0,4.80564686]
[1625458604893,0.24057544,34134.0,34133.0,4.86464686]
[1625458605645,0.24057544,34134.0,34133.0,4.87525627]
[1625458606597,0.24057544,34134.0,34133.0,6.42346577]
[1625458607697,0.24057544,34134.0,34133.0,6.36446577]
[1625458607797,0.24057544,34134.0,34133.0,6.30546577]
[1625458608297,0.24057544,34134.0,34133.0,4.75725627]
[1625458609001,0.24057544,34134.0,34133.0,4.81625627]
[1625458609097,0.24057544,34134.0,34133.0,4.87525627]
[1625458609598,0.24057544,34134.0,34133.0,4.81625627]
[1625458609697,0.24057544,34134.0,34133.0,4.75725627]
[1625458610300,0.24057544,34134.0,34133.0,4.81625627]
[1625458610399,0.24057544,34134.0,34133.0,4.87525627]
[1625458612151,0.22177544,34134.0,34133.0,4.87525627]
[1625458612653,0.22177544,34134.0,34133.0,4.75725627]
[1625458612852,0.22177544,34134.0,34133.0,4.81625627]
[1625458612951,0.22177544,34134.0,34133.0,4.75725627]
[1625458614309,0.22177544,34134.0,34133.0,4.81625627]
[1625458614411,0.22177544,34134.0,34133.0,4.75725627]
[1625458615212,0.22177544,34134.0,34133.0,4.81625627]
[1625458615313,0.22177544,34134.0,34133.0,4.75725627]
[1625458615515,0.22177544,34134.0,34133.0,4.87525627]
[1625458615664,0.22177544,34134.0,34133.0,4.81625627]
[1625458615762,0.22177544,34134.0,34133.0,4.87525627]
[1625458615863,0.22177544,34134.0,34133.0,4.81625627]
[1625458616764,0.22177544,34134.0,34133.0,4.86464686]
[1625458616965,0.22177544,34134.0,34133.0,4.80564686]
[1625458617466,0.22177544,34134.0,34133.0,4.86464686]
[1625458617567,0.22177544,34134.0,34133.0,4.80564686]
[1625458618068,0.22177544,34134.0,34133.0,4.86464686]
[1625458618267,0.22177544,34134.0,34133.0,4.80564686]
[1625458618419,0.22177544,34134.0,34133.0,4.86464686]
[1625458618518,0.22177544,34134.0,34133.0,4.80564686]
[1625458620475,0.22177544,34134.0,34133.0,4.86464686]
[1625458620876,0.22177544,34134.0,34133.0,4.80564686]
[1625458621525,0.22177544,34134.0,34133.0,4.86464686]
[1625458621629,0.27877544,34134.0,34133.0,4.80564686]
[1625458622278,0.27877544,34134.0,34133.0,4.50607142]
[1625458622477,0.27877544,34134.0,34133.0,3.13150779]
[1625458624382,0.27877544,34134.0,34133.0,2.92527779]
[1625458624984,0.27877544,34134.0,34133.0,1.72257225]
[1625458624985,0.33777544,34134.0,34133.0,1.72257225]
[1625458625536,0.33777544,34134.0,34133.0,0.00442148]
[1625458627538,0.33777544,34134.0,34133.0,0.69388608]
[1625458628189,0.33777544,34134.0,34133.0,0.00442148]
[1625458628539,0.33777544,34134.0,34126.0,0.00442028]
[1625458628991,0.33777544,34134.0,34132.0,0.34474725]
[1625458629191,0.39677544,34134.0,34132.0,0.34474725]
[1625458629341,0.39677544,34134.0,34133.0,0.00442045]
[1625458629844,0.39677544,34134.0,34132.0,0.00442035]
[1625458631247,0.39677544,34134.0,34132.0,0.34924683]
[1625458631697,0.39677544,34134.0,34133.0,0.00442049]
[1625458631799,0.71937223,34134.0,34133.0,0.00442049]
[1625458632297,0.71937223,34134.0,34132.0,0.00442054]
[1625458632498,0.71937223,34134.0,34133.0,0.00442054]
[1625458632748,0.71937223,34134.0,34132.0,0.00442057]
[1625458632847,3.7431,34133.0,34132.0,0.00442057]
[1625458632948,3.9181,34133.0,34132.0,0.00442057]
[1625458633351,3.9181,34133.0,34131.0,0.00442063]
[1625458633451,4.24128463,34133.0,34131.0,0.00442063]
[1625458633552,4.24128463,34133.0,34132.0,0.0044208]
[1625458633652,4.24128463,34133.0,34130.0,0.34499439]
[1625458633750,4.74128463,34133.0,34128.0,0.61001731]
[1625458633851,0.32318026,34132.0,34129.0,0.34502809]
[1625458633951,0.057,34131.0,34129.0,0.34502809]
[1625458634052,0.175,34131.0,34129.0,0.34502809]
[1625458634152,0.175,34131.0,34130.0,0.00441576]
[1625458634253,0.175,34131.0,34129.0,0.00344385]
[1625458634352,0.175,34131.0,34127.0,1.03500318]
[1625458634452,0.175,34131.0,34089.0,3.73199087]
[1625458634453,0.675,34131.0,34126.0,0.53509163]
[1625458634556,0.72172632,34127.0,34126.0,0.53509163]
[1625458634652,1.63216632,34127.0,34126.0,0.53509163]
[1625458634753,1.69116632,34127.0,34126.0,0.53509163]
[1625458635055,1.69116632,34127.0,34119.0,1.55263745]
[1625458635056,1.19116632,34127.0,34119.0,1.20774009]
[1625458635354,1.69116632,34127.0,34119.0,1.20774009]
[1625458635454,1.69116632,34127.0,34117.0,1.38027438]
[1625458635455,1.69116632,34127.0,34120.0,0.0044172]
[1625458635756,1.69116632,34127.0,34118.0,0.00441732]
[1625458635957,1.12705349,34126.0,34113.0,1.44748239]
[1625458636056,0.057,34125.0,34113.0,1.44748239]
[1625458636156,0.175,34125.0,34113.0,1.44748239]
[1625458636256,0.175,34125.0,34114.0,0.00441736]
[1625458636555,0.72172632,34115.0,34114.0,0.00441736]
[1625458636656,1.17332632,34115.0,34114.0,0.00441736]
[1625458637805,1.17332632,34115.0,34113.0,0.00441739]
[1625458637906,1.17332632,34115.0,34114.0,0.51689358]
[1625458638658,1.17332632,34115.0,34114.0,0.52131614]
[1625458638858,1.17332632,34115.0,34114.0,0.51689358]
[1625458640111,1.17332632,34115.0,34113.0,0.51662899]
[1625458640615,0.24057544,34114.0,34113.0,0.51662899]
[1625458640717,0.41557544,34114.0,34113.0,0.51662899]
[1625458641117,0.35657544,34114.0,34113.0,0.51662899]
[1625458641317,0.24057544,34114.0,34113.0,0.57562899]
[1625458641518,0.24057544,34114.0,34113.0,0.63905105]
[1625458641919,0.24057544,34114.0,34113.0,1.84412135]
[1625458642370,0.24057544,34114.0,34113.0,1.78512135]
[1625458642473,0.24057544,34114.0,34113.0,3.16228753]
[1625458642571,0.24057544,34114.0,34113.0,3.22128753]
[1625458642670,0.24057544,34114.0,34113.0,3.40286297]
[1625458642770,0.24057544,34114.0,34113.0,3.34386297]
[1625458642971,0.24057544,34114.0,34113.0,3.40286297]
[1625458643071,0.24057544,34114.0,34113.0,3.46186297]
[1625458643575,0.24057544,34114.0,34113.0,3.47249067]
[1625458643671,0.24057544,34114.0,34113.0,3.41349067]
[1625458643771,0.24057544,34114.0,34113.0,3.40286297]
[1625458643872,0.24057544,34114.0,34113.0,3.46186297]
[1625458643972,0.24057544,34114.0,34113.0,3.4724912]
[1625458644624,0.48635202,34128.0,34113.0,3.4724912]
[1625458644725,0.24057544,34120.0,34114.0,0.0876]
[1625458644826,0.24057544,34120.0,34114.0,0.15722609]
[1625458644926,0.24057544,34120.0,34114.0,0.21622609]
[1625458645025,0.24057544,34120.0,34115.0,0.0106254]
[1625458645129,0.24057544,34120.0,34119.0,0.51634922]
[1625458645227,0.24057544,34120.0,34119.0,0.63434922]
[1625458645428,0.24057544,34120.0,34119.0,0.64497452]
[1625458645527,0.24057544,34120.0,34119.0,3.22670646]
[1625458645626,0.24057544,34120.0,34119.0,3.2311273]
[1625458646429,0.24057544,34120.0,34119.0,4.78014438]
[1625458646528,0.24057544,34120.0,34119.0,4.88014438]
[1625458646778,0.24057544,34120.0,34119.0,3.57170274]
[1625458647682,0.24057544,34120.0,34119.0,5.12071089]
[1625458647781,0.22837544,34120.0,34119.0,5.12071089]
[1625458647930,0.21337544,34120.0,34119.0,5.12071089]
[1625458649085,0.21337544,34120.0,34119.0,3.57170274]
[1625458650537,0.21337544,34120.0,34119.0,5.12091075]
[1625458651390,0.21337544,34120.0,34119.0,5.06191075]
[1625458651643,0.21337544,34120.0,34119.0,3.51270274]
[1625458652443,0.21337544,34120.0,34119.0,3.57170274]
[1625458653545,0.21337544,34120.0,34119.0,3.65950274]
[1625458654346,0.21337544,34120.0,34119.0,5.20883363]
[1625458660958,0.21337544,34120.0,34119.0,5.14983363]
[1625458661059,0.21337544,34120.0,34119.0,5.20883363]
[1625458661158,0.21337544,34120.0,34119.0,5.14983363]